bitfinex/quotes_ETHUSD_20250504
["timestamp","ask_amount","ask_price","bid_price","bid_amount"]
[1746373087893,0.7917,1831.8,1831.7,4.501]
[1746373088217,1.24355045,1831.8,1831.7,4.501]
[1746373091619,6.7026617,1831.8,1831.7,4.501]
[1746373092641,1.24355045,1831.8,1831.7,4.501]
[1746373093001,1.24355045,1831.8,1831.5,10.01555084]
[1746373093202,1.24355045,1831.8,1831.5,12.35513576]
[1746373093406,7.83940395,1831.8,1831.5,12.35513576]
[1746373093720,7.04770395,1831.8,1831.5,6.89517928]
[1746373093887,7.04770395,1831.8,1831.6,5.45959899]
[1746373094089,7.04770395,1831.8,1831.6,6.24409899]
[1746373094429,7.04770395,1831.8,1831.6,8.26073276]
[1746373094724,7.04770395,1831.8,1831.7,5.45940929]
[1746373096094,7.04770395,1831.8,1831.6,9.82899873]
[1746373096606,7.04770395,1831.8,1831.6,15.28847939]
[1746373097126,0.45185045,1831.8,1831.6,15.28847939]
[1746373097322,0.45185045,1831.8,1831.7,1.52884794]
[1746373097524,3.66487785,1832.0,1831.8,5.45897054]
[1746373097727,3.66487785,1832.0,1831.9,7.02706371]
[1746373098027,3.66487785,1832.0,1831.9,6.24081325]
[1746373098322,3.66487785,1832.0,1831.9,10.74181325]
[1746373098531,3.66487785,1832.0,1831.9,12.51870801]
[1746373099729,3.66487785,1832.0,1831.9,14.08695847]
[1746373101730,4.07899812,1832.0,1831.9,14.08695847]
[1746373101930,0.41412027,1832.0,1831.9,14.08695847]
[1746373102304,6.59566438,1832.2,1832.0,5.4582644]
[1746373102512,6.59566438,1832.2,1832.0,13.36594591]
[1746373103430,2.38855046,1832.1,1832.0,6.11]
[1746373103634,8.3967678,1832.1,1832.0,6.11]
[1746373103934,5.45888577,1831.9,1831.6,4.5]
[1746373104095,12.46928543,1832.2,1831.7,2.35025046]
[1746373104096,7.83140657,1832.2,1831.7,2.35025046]
[1746373104300,7.83140657,1832.2,1831.8,5.4588692]
[1746373104528,7.83140657,1832.2,1831.8,6.7857079]
[1746373104732,12.8740465,1832.2,1831.8,6.7857079]
[1746373105118,7.41596438,1832.2,1831.8,6.7857079]
[1746373105453,0.8095,1832.3,1832.0,5.45850812]
[1746373105641,0.8095,1832.3,1832.0,9.95850812]
[1746373105849,0.8095,1832.2,1831.8,6.11]
[1746373106025,0.8095,1831.9,1831.8,6.11]
[1746373106222,0.8095,1831.9,1831.7,9.95940581]
[1746373106415,0.8095,1831.9,1831.7,11.5012995]
[1746373108461,1.22050442,1832.0,1831.7,11.5012995]
[1746373108764,0.8095,1832.0,1831.7,11.5012995]
[1746373109123,0.8095,1832.0,1831.8,5.45910753]
[1746373109539,0.8095,1831.7,1831.3,4.5]
[1746373109818,5.45981682,1831.6,1831.3,4.55459995]
[1746373110043,5.45981682,1831.6,1831.3,4.5]
[1746373110243,0.8135,1831.4,1831.3,4.5]
[1746373112025,6.27380359,1831.4,1831.3,4.5]
[1746373112864,0.8135,1831.4,1831.3,4.5]
[1746373114564,0.8135,1831.4,1831.0,19.698]
[1746373114868,5.46113364,1831.2,1831.0,24.199]
[1746373115663,5.46075199,1831.3,1831.0,24.199]
[1746373115821,5.46083516,1831.3,1831.0,24.199]
[1746373116027,1.48120492,1831.4,1831.0,24.199]
[1746373116227,10.92171875,1831.3,1831.0,24.199]
[1746373116575,10.92172115,1831.3,1831.0,24.199]
[1746373116868,0.41194568,1831.2,1831.0,24.199]
[1746373117240,5.87285665,1831.2,1831.0,24.199]
[1746373117461,0.41194568,1831.2,1831.0,24.199]
[1746373118447,0.41194568,1831.2,1831.1,0.05461164]
[1746373118655,6.27391563,1831.4,1831.1,0.05461164]
[1746373118947,0.41194568,1831.3,1831.0,29.66039107]
[1746373119250,5.4604215,1831.4,1831.0,29.66039107]
[1746373119450,0.41194568,1831.3,1831.0,29.66039107]
[1746373119650,6.2320327,1831.5,1831.0,30.59777178]
[1746373119850,0.41194568,1831.4,1831.2,0.8315]
[1746373120053,12.12471028,1831.6,1831.2,6.29225419]
[1746373120289,0.40856259,1831.5,1831.2,6.29225419]
[1746373120682,0.40856259,1831.5,1831.3,5.46057237]
[1746373120970,0.40856259,1831.5,1831.1,6.11]
[1746373120971,5.4604068,1831.4,1831.1,6.11]
[1746373121186,5.46037238,1831.4,1831.1,10.611]
[1746373121375,0.40856259,1831.3,1831.1,10.611]
[1746373121892,0.40856259,1831.2,1831.1,16.0721687]
[1746373122087,0.40856259,1831.2,1831.1,9.9621687]
[1746373122264,5.86716416,1831.5,1831.1,13.56806532]
[1746373122460,0.40856259,1831.2,1831.1,9.9621687]
[1746373122665,5.86716416,1831.5,1831.1,9.9621687]
[1746373122995,0.40856259,1831.2,1831.1,9.9621687]
[1746373123585,5.86716416,1831.5,1831.1,9.9621687]
[1746373123752,0.40856259,1831.2,1831.1,9.9621687]
[1746373123953,5.86716416,1831.5,1831.1,13.62266968]
[1746373124168,0.40856259,1831.2,1831.1,13.56806532]
[1746373125201,5.86716416,1831.5,1831.1,13.56806532]
[1746373125508,0.40771667,1831.4,1831.3,5.4604805]
[1746373125805,4.42617785,1831.6,1831.2,10.97596202]
[1746373126108,0.40771667,1831.5,1831.2,10.92135797]
[1746373126271,0.40771667,1831.5,1831.3,0.05460106]
[1746373126469,0.40771667,1831.5,1831.2,5.51525858]
[1746373126665,0.40771667,1831.5,1831.2,13.214979]
[1746373126870,0.40771667,1831.5,1831.2,13.11037917]
[1746373127408,0.40771667,1831.5,1831.2,7.6497184]
[1746373127707,0.40771667,1831.5,1831.2,5.46525982]
[1746373127895,0.40771667,1831.5,1831.2,10.92592068]
[1746373128092,0.40771667,1831.5,1831.2,5.46525982]
[1746373128973,0.40771667,1831.5,1831.2,5.41065875]
[1746373134410,0.40771667,1831.5,1831.2,10.87135838]
[1746373134715,0.40771667,1831.5,1831.3,5.46059092]
[1746373135289,0.81581486,1831.5,1831.3,5.46059092]
[1746373135586,0.81581486,1831.5,1831.2,5.46073202]
[1746373136508,0.81581486,1831.5,1831.2,5.51533315]
[1746373136818,0.81581486,1831.5,1831.2,5.46073202]
[1746373137527,0.81581486,1831.5,1831.2,10.92141229]
[1746373137880,0.81581486,1831.5,1831.3,5.46057624]
[1746373138075,0.40771667,1831.5,1831.3,5.46037022]
[1746373138315,0.40771667,1831.5,1831.4,5.46030359]
[1746373138783,5.45944839,1831.7,1831.3,6.25372821]
[1746373139117,0.40771667,1831.6,1831.3,6.25372821]
[1746373139491,0.40771667,1831.6,1831.3,7.19967166]
[1746373144214,5.86743604,1831.6,1831.3,0.7933]
[1746373146019,5.86743604,1831.6,1831.2,6.27268438]
[1746373146314,11.32741043,1831.6,1831.2,5.46068438]
[1746373146526,0.8033,1831.5,1831.2,5.46068438]
[1746373147022,0.40856259,1831.4,1831.2,5.46068438]
[1746373147989,5.45971937,1831.6,1831.2,5.46068438]
[1746373148185,0.95453453,1831.5,1831.2,5.46068438]
[1746373148892,6.82186623,1831.5,1831.1,16.88409791]
[1746373149693,6.82186623,1831.5,1831.1,16.8839905]
[1746373149893,0.81579293,1831.5,1831.1,16.8839815]
[1746373150119,0.81579293,1831.5,1831.2,5.46088523]
[1746373151348,0.81579293,1831.5,1831.2,10.92155959]
[1746373151517,0.40856259,1831.5,1831.4,6.26900359]
[1746373151842,5.45923237,1831.8,1831.4,6.26900359]
[1746373152051,0.40723326,1831.7,1831.4,6.26900359]
[1746373152211,5.86667791,1831.7,1831.4,0.8087]
[1746373152412,6.81983349,1831.7,1831.4,0.8087]
[1746373153743,0.40723326,1831.7,1831.4,6.26889738]
[1746373153950,0.40723326,1831.7,1831.5,4.517]
[1746373156058,0.40723326,1831.7,1831.5,9.97698445]
[1746373156440,4.07211111,1831.7,1831.5,9.97698445]
[1746373159889,0.40723326,1831.7,1831.5,9.97698445]
[1746373160544,0.40723326,1831.7,1831.5,4.517]
[1746373163891,5.86665274,1831.7,1831.5,4.517]
[1746373164487,0.40723326,1831.7,1831.5,4.517]
[1746373166582,0.40723326,1831.7,1831.6,5.45970735]
[1746373166785,0.40723326,1831.7,1831.6,7.80553757]
[1746373166956,0.40723326,1831.7,1831.6,16.16498262]
[1746373167160,3.66487785,1831.9,1831.8,5.45911125]
[1746373167356,3.66487785,1831.9,1831.8,5.51369625]
[1746373167582,4.00581422,1831.9,1831.8,5.51369625]
[1746373167769,4.00581422,1831.9,1831.8,6.69066559]
[1746373168193,4.00581422,1831.9,1831.8,7.48736511]
[1746373168393,4.00581422,1831.9,1831.8,7.43278059]
[1746373168691,4.00581422,1831.9,1831.8,13.59736455]
[1746373168990,4.00581422,1831.9,1831.8,13.54278059]
[1746373169188,4.00581422,1831.9,1831.8,15.73763833]
[1746373170476,0.34093637,1831.9,1831.8,15.73763833]
[1746373170676,3.66487785,1832.2,1832.1,6.27821734]
[1746373171015,3.66487785,1832.2,1832.1,32.02103907]
[1746373174116,5.45630231,1832.8,1832.3,5.45740543]
[1746373174409,5.45630231,1832.8,1832.3,10.91482702]
[1746373174609,5.45630231,1832.8,1832.3,5.45740543]
[1746373175201,9.23843029,1832.9,1832.4,5.51168636]
[1746373175403,5.4561428,1832.8,1832.4,5.45711989]
[1746373175807,11.71644694,1833.0,1832.1,17.5210147]
[1746373175808,6.66487785,1833.0,1832.7,5.45628745]
[1746373175989,12.12053451,1833.0,1832.6,10.72701454]
[1746373176615,0.29428127,1832.9,1832.6,10.72701454]
[1746373177507,0.29428127,1832.9,1832.7,0.05455875]
[1746373178121,0.29428127,1832.9,1832.6,16.18353367]
[1746373178295,0.29428127,1832.9,1832.7,7.12933976]
[1746373178496,0.29428127,1832.9,1832.7,7.07478099]
[1746373178723,0.29428127,1832.9,1832.7,7.12933976]
[1746373179111,0.29428127,1832.9,1832.8,5.45613269]
[1746373179622,0.29428127,1832.9,1832.7,7.12915324]
[1746373179817,0.29428127,1832.9,1832.8,0.71291532]
[1746373180000,0.29428127,1832.9,1832.8,6.16904801]
[1746373181825,0.29428127,1832.9,1832.8,0.71291532]
[1746373182002,0.29428127,1832.9,1832.6,4.504]
[1746373182003,0.763,1832.8,1832.6,4.504]
[1746373182352,0.29604145,1832.7,1832.6,4.504]
[1746373182903,0.29604145,1832.7,1832.4,14.5]
[1746373183100,0.29604145,1832.7,1832.5,4.503]
[1746373187239,0.29604145,1832.7,1832.4,9.96029306]
[1746373189036,0.29604145,1832.7,1832.4,4.503]
[1746373189822,5.75257298,1832.7,1832.4,4.503]
[1746373190025,6.94976419,1832.7,1832.4,4.503]
[1746373195351,12.40645159,1832.7,1832.4,4.503]
[1746373195542,6.94976419,1832.7,1832.4,4.503]
[1746373201665,5.4567451,1832.6,1832.4,4.503]
[1746373202051,0.29432639,1832.5,1832.4,4.503]
[1746373204270,6.65382111,1832.7,1832.4,4.503]
[1746373204475,0.29379515,1832.5,1832.4,4.503]
[1746373204754,1.19719121,1832.7,1832.4,4.503]
[1746373204929,0.29379515,1832.5,1832.4,9.96021671]
[1746373205131,6.21926438,1832.8,1832.4,9.96021671]
[1746373205656,0.29385586,1832.7,1832.4,9.96021671]
[1746373205863,0.94516788,1832.7,1832.4,9.96021671]
[1746373210750,0.26441647,1832.7,1832.4,9.96021671]
[1746373211275,0.26441647,1832.7,1832.4,9.96012604]
[1746373211481,0.26441647,1832.7,1832.4,10.01469524]
[1746373211776,0.26441647,1832.7,1832.4,9.96012604]
[1746373213078,0.26441647,1832.7,1832.4,10.01469226]
[1746373213279,0.26441647,1832.7,1832.4,11.6383179]
[1746373213576,0.26441647,1832.7,1832.4,11.58375168]
[1746373214287,0.26441647,1832.7,1832.4,11.58374193]
[1746373215780,0.26441647,1832.7,1832.5,0.8226]
[1746373215949,0.26441647,1832.7,1832.4,4.503]
[1746373216153,6.22515266,1832.8,1832.4,4.503]
[1746373216353,0.29298075,1832.6,1832.4,4.503]
[1746373216582,5.45656876,1832.7,1832.4,4.503]
[1746373217185,0.29480167,1832.6,1832.4,4.503]
[1746373217488,5.45656876,1832.7,1832.4,4.503]
[1746373217663,0.29480167,1832.5,1832.4,4.503]
[1746373217978,5.45656876,1832.7,1832.4,4.503]
[1746373218183,0.29480167,1832.5,1832.4,4.503]
[1746373218656,5.45656876,1832.7,1832.4,4.503]
[1746373218857,0.29480167,1832.5,1832.4,4.503]
[1746373219057,5.45656876,1832.7,1832.4,4.503]
[1746373219253,0.29480167,1832.5,1832.4,4.503]
[1746373219477,5.45656876,1832.7,1832.4,4.503]
[1746373219786,0.29480167,1832.5,1832.4,4.503]
[1746373219985,5.45656876,1832.7,1832.4,4.503]
[1746373220177,0.29480167,1832.5,1832.4,4.503]
[1746373220375,5.45656876,1832.7,1832.4,4.503]
[1746373220576,0.29480167,1832.5,1832.4,4.503]
[1746373220750,5.45656876,1832.7,1832.4,4.503]
[1746373220951,0.29480167,1832.5,1832.4,4.503]
[1746373221154,5.45656876,1832.7,1832.4,4.503]
[1746373221355,0.29480167,1832.5,1832.4,4.503]
[1746373221567,5.45656876,1832.7,1832.4,4.503]
[1746373221780,0.29480167,1832.5,1832.4,4.503]
[1746373221984,6.2253304,1832.7,1832.2,20.61]
[1746373222163,0.29480167,1832.5,1832.3,4.515]
[1746373222364,5.45684328,1832.6,1832.3,4.515]
[1746373222792,0.29480167,1832.5,1832.3,4.515]
[1746373223492,5.45684328,1832.6,1832.3,4.515]
[1746373223856,0.29480167,1832.5,1832.3,4.515]
[1746373224387,5.45684328,1832.6,1832.3,4.515]
[1746373224892,0.29480167,1832.5,1832.3,4.515]
[1746373225269,0.41787905,1832.5,1832.3,4.515]
[1746373225467,0.29480167,1832.4,1832.3,4.515]
[1746373226198,5.45689133,1832.6,1832.3,4.515]
[1746373226412,0.29480167,1832.4,1832.3,4.515]
[1746373226601,5.45689133,1832.6,1832.3,4.515]
[1746373226774,0.29480167,1832.4,1832.3,4.515]
[1746373226969,5.45689133,1832.6,1832.3,4.515]
[1746373227171,0.29358776,1832.4,1832.3,4.515]
[1746373227370,9.89032765,1832.7,1832.3,9.97247341]
[1746373227571,0.29358776,1832.4,1832.3,9.97247341]
[1746373228092,9.89032765,1832.7,1832.3,9.97247341]
[1746373228401,0.29358776,1832.4,1832.3,9.97247341]
[1746373228582,9.89032765,1832.7,1832.3,9.97247341]
[1746373228902,3.66487785,1832.6,1832.3,9.97247341]
[1746373229090,3.95846561,1832.6,1832.3,9.97247341]
[1746373229912,3.95846561,1832.6,1832.3,4.515]
[1746373230936,3.95846561,1832.6,1832.3,9.97261464]
[1746373231535,4.21701816,1832.6,1832.3,9.97261464]
[1746373235531,9.67378693,1832.6,1832.3,4.515]
[1746373235697,11.26371761,1832.6,1832.3,4.515]
[1746373237103,9.67378693,1832.6,1832.3,4.515]
[1746373237308,4.21701816,1832.6,1832.3,5.3186]
[1746373238322,9.67385211,1832.6,1832.3,5.3186]
[1746373239043,9.67385211,1832.6,1832.3,0.8036]
[1746373240542,4.21701816,1832.6,1832.3,0.8036]
[1746373240843,4.21701816,1832.6,1832.3,7.88330151]
[1746373245248,9.67375418,1832.6,1832.3,2.42570059]
[1746373245449,9.67375418,1832.6,1832.3,0.8036]
[1746373248156,9.67375418,1832.6,1832.2,4.502]
[1746373248322,5.45743687,1832.4,1832.1,10.612]
[1746373248733,0.55037378,1832.3,1832.1,10.612]
[1746373249134,5.45743687,1832.4,1832.1,10.612]
[1746373249624,0.55037378,1832.3,1832.1,10.612]
[1746373249821,5.45743687,1832.4,1832.1,10.612]
[1746373250026,8.47877718,1832.2,1832.1,6.11]
[1746373250223,5.45826692,1832.1,1831.7,20.4445]
[1746373250522,5.45826692,1832.1,1831.7,24.192]
[1746373250523,6.00804797,1832.0,1831.7,24.192]
[1746373250731,6.83404797,1832.0,1831.7,24.192]
[1746373251038,1.37546315,1832.0,1831.7,24.192]
[1746373251228,1.37546315,1832.0,1831.7,27.84360181]
[1746373251229,1.79227569,1832.0,1831.7,27.84360181]
[1746373251754,1.79227569,1832.0,1831.7,33.30300664]
[1746373253239,0.96627569,1832.0,1831.7,33.30300664]
[1746373254859,0.96627569,1832.0,1831.7,27.84360181]
[1746373255037,0.96627569,1832.0,1831.8,5.45910024]
[1746373255633,0.96627569,1832.0,1831.7,27.84360181]
[1746373255844,0.96627569,1832.0,1831.7,33.30287083]
[1746373256479,0.96627569,1832.0,1831.7,27.84360181]
[1746373256856,0.96627569,1832.0,1831.7,33.30282677]
[1746373258551,0.96627569,1832.0,1831.7,29.65122496]
[1746373259466,0.96627569,1832.0,1831.8,5.45911113]
[1746373260143,0.96627569,1832.0,1831.7,9.96123574]
[1746373261771,0.96627569,1832.0,1831.8,5.45910626]
[1746373261980,0.96627569,1832.0,1831.7,9.96120804]
[1746373262272,0.96627569,1832.0,1831.7,12.1897331]
[1746373265669,0.54946315,1832.0,1831.8,6.26922261]
[1746373265866,3.66487785,1832.3,1831.9,5.45881325]
[1746373266146,0.54490904,1832.2,1831.9,5.45881325]
[1746373267063,0.54490904,1832.2,1832.0,5.45838684]
[1746373268993,8.43809185,1832.4,1832.0,5.45838684]
[1746373269181,0.54484831,1832.1,1832.0,5.45838684]
[1746373269351,8.43809185,1832.4,1832.0,5.45838684]
[1746373269551,0.54484831,1832.1,1832.0,5.45838684]
[1746373269797,8.43809185,1832.4,1832.0,5.45838684]
[1746373269975,0.54484831,1832.1,1832.0,5.45838684]
[1746373270156,5.457738,1832.3,1831.9,5.4586938]
[1746373270367,0.54484831,1832.1,1831.9,5.4586938]
[1746373270583,5.457738,1832.3,1832.0,4.501]
[1746373270900,6.84732099,1832.3,1832.0,4.501]
[1746373275346,8.43826684,1832.4,1832.0,9.95951482]
[1746373278837,8.43826684,1832.4,1832.0,10.73401482]
[1746373279235,10.86464246,1832.5,1832.0,10.7337886]
[1746373279430,10.86464246,1832.5,1832.1,5.45810482]
[1746373280340,5.45732473,1832.4,1832.1,5.45810482]
[1746373280535,5.45732473,1832.4,1832.0,16.19208605]
[1746373280846,0.53105855,1832.3,1832.1,5.45820668]
[1746373281216,5.45732473,1832.4,1832.1,5.45820668]
[1746373281413,0.53105855,1832.2,1832.1,5.45820668]
[1746373281641,5.45732473,1832.4,1832.1,5.45820668]
[1746373281825,0.53105855,1832.2,1832.1,5.45820668]
[1746373282021,5.45732473,1832.4,1832.1,5.45820668]
[1746373282226,0.53105855,1832.2,1832.1,5.45820668]
[1746373282544,0.53105855,1832.2,1832.1,7.07740468]
[1746373282715,5.45732473,1832.4,1832.1,7.07740468]
[1746373282916,0.53105855,1832.3,1832.1,5.45820668]
[1746373283109,5.45732473,1832.4,1832.1,5.45820668]
[1746373283313,0.53105855,1832.3,1832.1,5.45820668]
[1746373283513,5.45732473,1832.4,1832.1,5.45820668]
[1746373283835,0.53105855,1832.3,1832.0,10.73382997]
[1746373284142,5.45732473,1832.4,1832.0,12.35307848]
[1746373284441,0.53105855,1832.2,1832.0,12.35307848]
[1746373284641,5.45732473,1832.4,1832.0,12.35307848]
[1746373284851,0.53105855,1832.1,1832.0,12.35307848]
[1746373285349,5.45732473,1832.4,1832.0,12.35307848]
[1746373285555,0.53105855,1832.1,1832.0,12.35307848]
[1746373285748,5.45732473,1832.4,1832.0,12.35307848]
[1746373285934,0.53105855,1832.1,1832.0,10.73382997]
[1746373286135,5.45732473,1832.4,1832.0,10.73382997]
[1746373286363,0.53105855,1832.1,1832.0,10.73382997]
[1746373286536,5.45732473,1832.4,1832.0,10.73382997]
[1746373286733,0.53105855,1832.1,1832.0,10.73382997]
[1746373286938,5.45732473,1832.4,1832.0,12.35307848]
[1746373287137,0.53105855,1832.1,1832.0,12.35307848]
[1746373287350,5.45732473,1832.4,1832.0,12.35307848]
[1746373287547,0.53105855,1832.1,1832.0,10.73382997]
[1746373287760,5.45732473,1832.4,1832.0,10.73382997]
[1746373287959,0.53105855,1832.1,1832.0,10.73382997]
[1746373288156,5.45732473,1832.4,1832.0,10.73382997]
[1746373288452,5.45732473,1832.4,1832.0,10.78840951]
[1746373288771,0.53105855,1832.3,1832.0,12.41311598]
[1746373288951,0.53105855,1832.3,1832.0,12.35853644]
[1746373289255,5.45732473,1832.4,1832.0,12.35853644]
[1746373289755,0.53105855,1832.3,1832.0,12.35853644]
[1746373290118,5.45732473,1832.4,1832.0,12.35853644]
[1746373290325,0.53117997,1832.3,1832.0,10.73382997]
[1746373290741,11.88238365,1832.5,1832.1,5.45820515]
[1746373290919,0.53117997,1832.2,1832.1,5.45820515]
[1746373291122,11.88238365,1832.5,1832.1,5.45820515]
[1746373291353,0.53117997,1832.2,1832.1,5.45820515]
[1746373291562,11.88238365,1832.5,1832.1,7.07740866]
[1746373291723,0.53117997,1832.2,1832.1,5.45820515]
[1746373291924,5.45733264,1832.4,1832.0,10.73386457]
[1746373292126,0.53117997,1832.2,1832.0,10.73386457]
[1746373292357,7.02502647,1832.4,1832.0,10.73386457]
[1746373292554,0.53117997,1832.1,1832.0,10.73386457]
[1746373292853,10.68990432,1832.4,1832.0,12.35311682]
[1746373293059,0.53117997,1832.1,1832.0,10.73386457]
[1746373293259,10.68990432,1832.4,1832.0,10.73386457]
[1746373293647,2.0988738,1832.3,1832.0,4.501]
[1746373293832,5.45808493,1832.2,1832.0,4.501]
[1746373294032,8.3865805,1832.3,1832.0,4.501]
[1746373294228,0.5312407,1832.1,1832.0,4.501]
[1746373294429,7.85540053,1832.3,1832.0,4.501]
[1746373294635,0.53111924,1832.1,1832.0,4.501]
[1746373295034,6.2877067,1832.3,1832.0,4.501]
[1746373295267,11.7456258,1832.3,1832.0,4.501]
[1746373295434,0.53111924,1832.2,1832.0,4.501]
[1746373297062,5.98906637,1832.2,1832.0,4.501]
[1746373297252,5.45881325,1831.9,1831.8,10.611]
[1746373297449,5.45867078,1832.0,1831.8,10.611]
[1746373297641,0.53075486,1831.9,1831.8,10.611]
[1746373298633,12.48457052,1832.1,1831.8,10.611]
[1746373298834,0.53075486,1831.9,1831.8,10.611]
[1746373299062,5.45852164,1832.0,1831.8,10.611]
[1746373299264,0.53075486,1831.9,1831.8,10.611]
[1746373302885,0.53075486,1831.9,1831.8,4.501]
[1746373303860,5.45853979,1832.0,1831.8,4.501]
[1746373304064,0.52929719,1831.9,1831.8,4.501]
[1746373313494,15.39994713,1832.1,1831.8,4.501]
[1746373313693,0.52935794,1831.9,1831.8,4.501]
[1746373313897,9.94147378,1832.1,1831.8,4.501]
[1746373314102,0.52935794,1831.9,1831.8,4.501]
[1746373314285,15.39995358,1832.1,1831.8,4.501]
[1746373314485,0.52935794,1831.9,1831.8,4.501]
[1746373314685,15.39995358,1832.1,1831.8,4.501]
[1746373314887,0.52935794,1831.9,1831.8,4.501]
[1746373315086,15.39995358,1832.1,1831.8,4.501]
[1746373315286,0.52935794,1831.9,1831.8,4.501]
[1746373315509,15.39995358,1832.1,1831.8,4.501]
[1746373315710,0.52935794,1831.9,1831.8,4.501]
[1746373315911,15.39995358,1832.1,1831.8,4.501]
[1746373316110,0.52935794,1831.9,1831.8,4.501]
[1746373316303,15.39995358,1832.1,1831.8,4.501]
[1746373316491,0.52935794,1831.9,1831.8,4.501]
[1746373316696,11.73506521,1832.1,1831.8,4.501]
[1746373317197,0.52935794,1832.0,1831.8,4.501]
[1746373320727,0.52935794,1832.0,1831.9,0.7602]
[1746373320910,0.52935794,1832.0,1831.9,6.21901325]
[1746373321086,0.5289328,1832.0,1831.9,6.21901325]
[1746373321286,0.5289328,1832.0,1831.9,0.7602]
[1746373321509,3.66487785,1832.2,1831.9,0.7602]
[1746373321697,0.52929721,1832.0,1831.9,0.7602]
[1746373322192,3.66487785,1832.2,1831.9,0.7602]
[1746373322394,0.52929721,1832.0,1831.9,0.7602]
[1746373322594,3.66487785,1832.2,1831.9,0.7602]
[1746373322927,0.52929721,1832.0,1831.9,0.7602]
[1746373323230,0.52929721,1832.0,1831.9,6.21901325]
[1746373323523,5.23295324,1832.3,1831.9,6.21901325]
[1746373323717,0.52929721,1832.0,1831.9,6.21901325]
[1746373323918,3.66487785,1832.3,1831.9,6.21901325]
[1746373324131,0.52929721,1832.0,1831.9,6.21901325]
[1746373324590,3.66487785,1832.3,1831.9,6.21901325]
[1746373324794,0.52929721,1832.0,1831.9,6.21901325]
[1746373325008,3.66487785,1832.3,1831.9,9.28690655]
[1746373325202,0.52929721,1832.0,1831.9,6.21901325]
[1746373325461,3.66487785,1832.3,1831.9,6.21901325]
[1746373325661,0.52929721,1832.0,1831.9,1.56807539]
[1746373325868,3.66487785,1832.3,1832.0,5.45833163]
[1746373326026,3.66487785,1832.3,1832.0,6.24743163]
[1746373326232,3.66487785,1832.3,1832.0,7.41805612]
[1746373326544,3.66487785,1832.3,1832.1,5.4582098]
[1746373326842,0.53105849,1832.2,1832.1,5.4582098]
[1746373327814,0.53105849,1832.2,1832.1,7.86996071]
[1746373328018,3.66487785,1832.3,1832.2,6.24701944]
[1746373328347,3.66487785,1832.3,1832.2,12.07980745]
[1746373331129,11.0947636,1832.7,1832.3,5.45758067]
[1746373334163,5.45685446,1832.6,1832.2,18.18967601]
[1746373334334,7.02492985,1832.6,1832.2,18.18967601]
[1746373334855,7.02492985,1832.6,1832.2,23.64738358]
[1746373335158,1.56807539,1832.6,1832.2,23.64738358]
[1746373335487,7.42997359,1832.7,1832.2,23.64727631]
[1746373335659,5.8618982,1832.7,1832.3,5.45760217]
[1746373335961,7.42997359,1832.7,1832.3,5.45760217]
[1746373341877,0.48781551,1832.6,1832.3,5.45760217]
[1746373342049,7.42997359,1832.7,1832.3,5.45760217]
[1746373342255,0.48781551,1832.5,1832.3,5.45760217]
[1746373342572,7.42997359,1832.7,1832.3,7.82231926]
[1746373342870,7.42997359,1832.7,1832.2,18.18959579]
[1746373343075,5.94456728,1832.6,1832.2,23.64732085]
[1746373343979,0.48781551,1832.6,1832.3,5.45760364]
[1746373344268,7.4299825,1832.7,1832.3,5.45760364]
[1746373344468,0.48885176,1832.6,1832.3,5.45760364]
[1746373344646,7.4299825,1832.7,1832.3,5.45760364]
[1746373344846,0.48885176,1832.5,1832.3,5.45760364]
[1746373345050,7.4299825,1832.7,1832.3,7.82232358]
[1746373345250,0.48885176,1832.4,1832.3,7.82232358]
[1746373345478,5.45687447,1832.6,1832.3,2.36471994]
[1746373345663,0.48885176,1832.4,1832.3,5.45761263]
[1746373345877,7.42996281,1832.7,1832.3,5.45761263]
[1746373346064,0.48994902,1832.4,1832.3,5.45761263]
[1746373346268,7.42996281,1832.7,1832.3,5.45761263]
[1746373346437,0.48994902,1832.6,1832.3,5.45761263]
[1746373346636,12.88664168,1832.7,1832.3,5.45761263]
[1746373346867,0.48994902,1832.5,1832.3,5.45761263]
[1746373347038,7.42996281,1832.7,1832.3,5.45761263]
[1746373347234,0.48994902,1832.6,1832.3,5.45761263]
[1746373347465,7.42996281,1832.7,1832.4,0.7513]
[1746373347669,0.48994902,1832.5,1832.4,0.7513]
[1746373347854,7.42996281,1832.7,1832.4,0.7513]
[1746373348049,0.48994902,1832.6,1832.4,0.7513]
[1746373348255,8.7982161,1832.7,1832.4,0.7513]
[1746373348456,0.48994902,1832.6,1832.4,0.7513]
[1746373348676,8.7982161,1832.7,1832.4,0.7513]
[1746373348880,0.48994902,1832.6,1832.4,0.7513]
[1746373349084,8.7982161,1832.7,1832.4,0.7513]
[1746373349268,0.48994902,1832.6,1832.4,0.7513]
[1746373349588,7.42996281,1832.7,1832.4,0.7513]
[1746373349788,0.48994902,1832.5,1832.4,0.7513]
[1746373349950,7.42996281,1832.7,1832.4,0.7513]
[1746373350149,0.48994902,1832.5,1832.4,0.7513]
[1746373350377,7.42996281,1832.7,1832.4,0.7513]
[1746373350546,0.48994902,1832.5,1832.4,0.7513]
[1746373350746,7.42996281,1832.7,1832.4,0.7513]
[1746373351084,8.7982161,1832.7,1832.4,0.7513]
[1746373351284,0.48994902,1832.6,1832.4,0.7513]
[1746373351460,8.7982161,1832.7,1832.4,0.7513]
[1746373351784,0.48994902,1832.5,1832.4,0.7513]
[1746373351971,7.42996281,1832.7,1832.4,0.7513]
[1746373352288,8.7982161,1832.7,1832.4,0.7513]
[1746373352588,0.48994902,1832.6,1832.4,0.7513]
[1746373352886,8.7982161,1832.7,1832.4,0.7513]
[1746373353181,0.48994902,1832.5,1832.4,0.7513]
[1746373353343,7.42996281,1832.7,1832.4,0.7513]
[1746373353543,0.48994902,1832.5,1832.4,0.7513]
[1746373353748,7.42996281,1832.7,1832.4,0.7513]
[1746373353950,0.48994902,1832.5,1832.4,0.7513]
[1746373354148,7.42996281,1832.7,1832.4,0.7513]
[1746373354675,0.48988806,1832.6,1832.4,0.7513]
[1746373354854,7.42996281,1832.7,1832.4,0.7513]
[1746373355060,0.48988806,1832.5,1832.4,0.7513]
[1746373355393,7.42996281,1832.7,1832.4,0.7513]
[1746373355564,0.48988806,1832.5,1832.4,0.7513]
[1746373355765,7.42996281,1832.7,1832.4,0.7513]
[1746373355965,0.48988806,1832.5,1832.4,0.7513]
[1746373356161,7.42996281,1832.7,1832.4,0.7513]
[1746373356392,0.48988806,1832.5,1832.4,0.7513]
[1746373356849,7.42996281,1832.7,1832.4,0.7513]
[1746373357047,0.48988806,1832.6,1832.4,0.7513]